[Event "EUCC Open Blitz 2024"]
[Site "Miskolc"]
[Date "2024.07.13"]
[Round "3.13"]
[White "Spanjer, Joris"]
[Black "Schiopu, Andreea-Alexandra"]
[Result "1/2-1/2"]
[ECO "D30"]
[WhiteElo "1855"]
[BlackElo "1829"]
[PlyCount "133"]
[EventDate "2024.07.08"]
[EventType "team-tourn"]
[EventCountry "HUN"]
[TimeControl "1500+10"]

1. d4 {[%emt 0:22:18]} d5 {[%emt 0:22:16]} 2. c4 {[%emt 0:00:09]} e6 {[%emt 0:00:09]} 3. Nf3 {[%emt 0:00:10]} c5 {[%emt 0:00:09]} 4. cxd5 {[%emt 0:00:09]} exd5 {[%emt 0:00:09]} 5. g3 {[%emt 0:00:09]} Nf6 {[%emt 0:00:11]} 6. Bg2 {[%emt 0:00:09]} Nc6 {[%emt 0:00:12]} 7. O-O {[%emt 0:00:10]} Be7 {[%emt 0:00:09]} 8. dxc5 {[%emt 0:00:09]} Bxc5 {[%emt 0:00:12]} 9. a3 {[%emt 0:00:08]} O-O {[%emt 0:00:13]} 10. b4 {[%emt 0:00:10]} Be7 {[%emt 0:00:11]} 11. Bb2 {[%emt 0:00:09]} Be6 {[%emt 0:00:13]} 12. Nc3 {[%emt 0:00:19]} Rc8 {[%emt 0:00:23]} 13. Rc1 {[%emt 0:00:17]} Ne4 {[%emt 0:00:37]} 14. Nxe4 {[%emt 0:00:41]} dxe4 {[%emt 0:00:09]} 15. Nd4 {[%emt 0:00:15]} Nxd4 {[%emt 0:00:20]} 16. Qxd4 {[%emt 0:00:21]} Qxd4 {[%emt 0:00:55]} 17. Bxd4 {[%emt 0:00:09]} Rfd8 {[%emt 0:00:21]} 18. Bxa7 {[%emt 0:00:24]} Rxc1 {[%emt 0:00:21]} 19. Rxc1 {[%emt 0:00:10]} Ra8 {[%emt 0:00:09]} 20. Bc5 {[%emt 0:00:47]} Bxc5 {[%emt 0:00:15]} 21. bxc5 {[%emt 0:00:29]} Rxa3 {[%emt 0:00:10]} 22. Bxe4 {[%emt 0:00:11]} Rb3 {[%emt 0:00:17]} 23. Kg2 {[%emt 0:00:33]} Rb2 {[%emt 0:00:09]} 24. Bf3 {[%emt 0:00:16]} g6 {[%emt 0:00:12]} 25. h3 {[%emt 0:00:13]} Rb3 {[%emt 0:00:13]} 26. Rc2 {[%emt 0:00:10]} Bf5 {[%emt 0:00:09]} 27. Rc1 {[%emt 0:00:13]} Rb2 {[%emt 0:00:09]} 28. g4 {[%emt 0:00:10]} Be6 {[%emt 0:00:10]} 29. Kg3 {[%emt 0:00:10]} Rb3 {[%emt 0:00:09]} 30. c6 {[%emt 0:00:10]} bxc6 {[%emt 0:00:10]} 31. Rxc6 {[%emt 0:00:09]} Bd5 {[%emt 0:00:11]} 32. Rc8+ {[%emt 0:00:11]} Kg7 {[%emt 0:00:08]} 33. e3 {[%emt 0:00:09]} Bxf3 {[%emt 0:00:16]} 34. Kxf3 {[%emt 0:00:09]} Rb2 {[%emt 0:00:10]} 35. Kg3 {[%emt 0:00:09]} Rd2 {[%emt 0:00:10]} 36. f4 {[%emt 0:00:09]} Re2 {[%emt 0:00:10]} 37. Re8 {[%emt 0:00:10]} Kf6 {[%emt 0:00:12]} 38. Kf3 {[%emt 0:00:10]} Rh2 {[%emt 0:00:09]} 39. Kg3 {[%emt 0:00:09]} Re2 {[%emt 0:00:09]} 40. e4 {[%emt 0:00:13]} Re3+ {[%emt 0:00:10]} 41. Kg2 {[%emt 0:00:09]} Re2+ {[%emt 0:00:12]} 42. Kf3 {[%emt 0:00:09]} Rh2 43. Kg3 Re2 {[%emt 0:00:19]} 44. e5+ {[%emt 0:00:17]} Kg7 {[%emt 0:00:11]} 45. Re7 {[%emt 0:00:14]} Re3+ {[%emt 0:00:09]} 46. Kg2 {[%emt 0:00:10]} Re2+ {[%emt 0:00:09]} 47. Kf3 {[%emt 0:00:08]} Re1 {[%emt 0:00:12]} 48. Rd7 {[%emt 0:00:14]} Rf1+ {[%emt 0:00:09]} 49. Kg2 {[%emt 0:00:09]} Rxf4 {[%emt 0:00:09]} 50. Kg3 {[%emt 0:00:10]} Re4 {[%emt 0:00:09]} 51. Rd5 {[%emt 0:00:09]} Re3+ {[%emt 0:00:12]} 52. Kg2 {[%emt 0:00:09]} Kf8 {[%emt 0:00:10]} 53. Rd8+ {[%emt 0:00:15]} Ke7 {[%emt 0:00:09]} 54. Rh8 {[%emt 0:00:09]} Rxe5 {[%emt 0:00:14]} 55. Rxh7 {[%emt 0:00:09]} Kf6 {[%emt 0:00:11]} 56. Rh8 {[%emt 0:00:11]} Re3 {[%emt 0:00:11]} 57. Rc8 {[%emt 0:00:10]} Rb3 {[%emt 0:00:09]} 58. Rc6+ {[%emt 0:00:09]} Kg5 {[%emt 0:00:10]} 59. Rc8 {[%emt 0:00:12]} Rb2+ {[%emt 0:00:16]} 60. Kg3 {[%emt 0:00:09]} Rb3+ {[%emt 0:00:09]} 61. Kg2 {[%emt 0:00:09]} Kh4 {[%emt 0:00:15]} 62. Rh8+ {[%emt 0:00:09]} Kg5 {[%emt 0:00:08]} 63. Rc8 {[%emt 0:00:09]} Re3 64. Rc7 {[%emt 0:00:16]} Kf6 {[%emt 0:00:23]} 65. Rc6+ {[%emt 0:00:09]} Kg5 {[%emt 0:00:14]} 66. Rc8 {[%emt 0:00:10]} Kf6 {[%emt 0:00:11]} 67. Rc6+ {[%emt 0:00:09]} 1/2-1/2

[Event "EUCC Open Blitz 2024"]
[Site "Miskolc"]
[Date "2024.07.13"]
[Round "3.15"]
[White "Farkas, Richard"]
[Black "Jellema, Pieter"]
[Result "1-0"]
[ECO "B13"]
[WhiteElo "2233"]
[BlackElo "2006"]
[PlyCount "59"]
[EventDate "2024.07.08"]
[EventType "team-tourn"]
[EventCountry "HUN"]
[TimeControl "1500+10"]

1. e4 c6 2. d4 d5 3. exd5 {[%emt 0:22:39]} cxd5 {[%emt 0:22:33]} 4. Bd3 {[%emt 0:00:09]} Nc6 {[%emt 0:00:09]} 5. c3 {[%emt 0:00:10]} Nf6 {[%emt 0:00:08]} 6. Bg5 {[%emt 0:00:09]} Bg4 {[%emt 0:00:15]} 7. Ne2 {[%emt 0:00:10]} e6 {[%emt 0:00:10]} 8. Qc2 {[%emt 0:00:11]} Bd6 {[%emt 0:00:11]} 9. Ng3 {[%emt 0:00:14]} Rc8 {[%emt 0:00:24]} 10. f3 {[%emt 0:00:23]} Bxg3+ {[%emt 0:00:48]} 11. hxg3 {[%emt 0:00:10]} Bf5 {[%emt 0:00:09]} 12. Bxf5 {[%emt 0:00:13]} exf5 {[%emt 0:00:10]} 13. Qxf5 {[%emt 0:00:16]} h6 {[%emt 0:00:19]} 14. Bxf6 {[%emt 0:00:14]} Qxf6 {[%emt 0:00:10]} 15. Qxc8+ {[%emt 0:00:11]} Nd8 {[%emt 0:00:19]} 16. Qg4 {[%emt 0:01:08]} O-O {[%emt 0:00:11]} 17. Kf2 {[%emt 0:00:11]} Qb6 {[%emt 0:00:25]} 18. b3 {[%emt 0:00:12]} Ne6 {[%emt 0:00:17]} 19. Rd1 {[%emt 0:00:21]} Qc7 {[%emt 0:00:21]} 20. Qf5 {[%emt 0:00:12]} Rd8 {[%emt 0:00:16]} 21. Qd3 {[%emt 0:00:12]} h5 {[%emt 0:00:33]} 22. Nd2 {[%emt 0:00:10]} h4 {[%emt 0:00:14]} 23. gxh4 {[%emt 0:00:10]} Nf4 {[%emt 0:00:09]} 24. Qe3 {[%emt 0:00:12]} Rd7 {[%emt 0:00:30]} 25. Re1 {[%emt 0:00:12]} g6 {[%emt 0:00:10]} 26. Nf1 {[%emt 0:00:14]} Kf8 {[%emt 0:00:14]} 27. Rad1 {[%emt 0:00:14]} Kg8 {[%emt 0:00:15]} 28. Ng3 {[%emt 0:00:16]} b5 {[%emt 0:00:14]} 29. Qe8+ {[%emt 0:00:17]} Kh7 {[%emt 0:00:10]} 30. Qe5 {[%emt 0:00:11]} 1-0

[Event "EUCC Open Blitz 2024"]
[Site "Miskolc"]
[Date "2024.07.13"]
[Round "3.16"]
[White "Broersma, Sven"]
[Black "Bartok, David Dominik"]
[Result "1-0"]
[ECO "D35"]
[WhiteElo "1945"]
[BlackElo "1958"]
[PlyCount "67"]
[EventDate "2024.07.08"]
[EventType "team-tourn"]
[EventCountry "HUN"]
[TimeControl "1500+10"]

1. d4 {[%emt 0:22:18]} d5 {[%emt 0:22:18]} 2. c4 {[%emt 0:00:09]} e6 {[%emt 0:00:09]} 3. Nc3 {[%emt 0:00:09]} Nf6 {[%emt 0:00:09]} 4. cxd5 exd5 {[%emt 0:00:10]} 5. Bg5 {[%emt 0:00:17]} Be7 {[%emt 0:00:14]} 6. e3 {[%emt 0:00:09]} c6 {[%emt 0:00:09]} 7. Bd3 {[%emt 0:00:10]} Be6 {[%emt 0:00:15]} 8. Qc2 {[%emt 0:00:12]} h6 {[%emt 0:00:10]} 9. Bh4 {[%emt 0:00:10]} Nbd7 {[%emt 0:00:10]} 10. Nge2 {[%emt 0:00:09]} O-O {[%emt 0:00:20]} 11. O-O {[%emt 0:00:11]} Re8 {[%emt 0:00:09]} 12. f3 {[%emt 0:00:19]} Nf8 {[%emt 0:00:14]} 13. Rae1 {[%emt 0:00:11]} a5 {[%emt 0:00:19]} 14. Nf4 {[%emt 0:00:38]} N6d7 {[%emt 0:00:26]} 15. Bxe7 {[%emt 0:00:10]} Qxe7 {[%emt 0:00:14]} 16. e4 {[%emt 0:00:25]} Qd6 {[%emt 0:00:26]} 17. e5 {[%emt 0:00:13]} Qe7 {[%emt 0:00:11]} 18. Nxe6 {[%emt 0:00:19]} Nxe6 {[%emt 0:00:21]} 19. Qf2 {[%emt 0:00:10]} b5 {[%emt 0:00:25]} 20. f4 {[%emt 0:00:11]} b4 {[%emt 0:00:10]} 21. Ne2 {[%emt 0:00:18]} c5 {[%emt 0:00:09]} 22. f5 {[%emt 0:00:42]} Nxd4 {[%emt 0:00:20]} 23. Nxd4 {[%emt 0:00:09]} cxd4 {[%emt 0:00:11]} 24. f6 {[%emt 0:00:18]} Qf8 {[%emt 0:00:23]} 25. Qf5 {[%emt 0:00:11]} g6 {[%emt 0:00:13]} 26. Qxd7 {[%emt 0:00:10]} Rad8 {[%emt 0:00:13]} 27. Qa7 {[%emt 0:00:17]} h5 {[%emt 0:00:25]} 28. Bxg6 {[%emt 0:00:17]} Ra8 {[%emt 0:00:21]} 29. Qxd4 {[%emt 0:00:29]} fxg6 {[%emt 0:00:14]} 30. e6 {[%emt 0:00:14]} Rec8 {[%emt 0:00:17]} 31. f7+ {[%emt 0:00:15]} Kh7 {[%emt 0:00:09]} 32. e7 {[%emt 0:00:10]} Qg7 {[%emt 0:00:16]} 33. Qxg7+ {[%emt 0:00:12]} Kxg7 {[%emt 0:00:10]} 34. e8=Q {[%emt 0:00:11]} 1-0

[Event "EUCC Open Blitz 2024"]
[Site "Miskolc"]
[Date "2024.07.13"]
[Round "4.1"]
[White "Vardanyan, Aras"]
[Black "Manafov, Vugar"]
[Result "1/2-1/2"]
[ECO "A07"]
[WhiteElo "2312"]
[BlackElo "2430"]
[PlyCount "189"]
[EventDate "2024.07.08"]
[EventType "team-tourn"]
[EventCountry "HUN"]
[TimeControl "1500+10"]

1. Nf3 {[%emt 0:22:17]} d5 {[%emt 0:22:16]} 2. g3 {[%emt 0:00:09]} c6 {[%emt 0:00:09]} 3. Bg2 {[%emt 0:00:09]} Bg4 {[%emt 0:00:09]} 4. c4 {[%emt 0:00:10]} Bxf3 {[%emt 0:00:11]} 5. Bxf3 {[%emt 0:00:09]} e6 {[%emt 0:00:08]} 6. O-O {[%emt 0:00:10]} Nd7 {[%emt 0:00:09]} 7. Bg2 {[%emt 0:00:12]} Ngf6 {[%emt 0:00:12]} 8. b3 {[%emt 0:00:10]} a5 {[%emt 0:00:09]} 9. Bb2 {[%emt 0:00:15]} Be7 {[%emt 0:00:09]} 10. d3 {[%emt 0:00:10]} O-O {[%emt 0:00:09]} 11. a3 {[%emt 0:00:09]} Re8 {[%emt 0:00:10]} 12. Nd2 {[%emt 0:00:09]} Bf8 {[%emt 0:00:08]} 13. Bc3 {[%emt 0:00:11]} h6 {[%emt 0:00:11]} 14. b4 {[%emt 0:00:11]} e5 {[%emt 0:00:24]} 15. cxd5 {[%emt 0:00:14]} Nxd5 {[%emt 0:00:14]} 16. Qb3 {[%emt 0:00:18]} Nxc3 {[%emt 0:00:33]} 17. Qxc3 {[%emt 0:00:10]} Nf6 {[%emt 0:00:09]} 18. b5 {[%emt 0:00:16]} cxb5 19. Bxb7 {[%emt 0:00:10]} Rb8 {[%emt 0:00:19]} 20. Bg2 {[%emt 0:00:19]} Qb6 {[%emt 0:00:14]} 21. Ne4 {[%emt 0:00:16]} Nxe4 {[%emt 0:00:36]} 22. Bxe4 {[%emt 0:00:09]} Rbc8 {[%emt 0:00:25]} 23. Qb2 {[%emt 0:00:11]} Rc5 {[%emt 0:00:16]} 24. Rfc1 {[%emt 0:00:23]} Rec8 {[%emt 0:00:09]} 25. Bf3 {[%emt 0:00:16]} Qd6 {[%emt 0:00:12]} 26. Rxc5 {[%emt 0:00:18]} Rxc5 {[%emt 0:00:13]} 27. Rb1 {[%emt 0:00:14]} g6 {[%emt 0:00:17]} 28. h4 {[%emt 0:00:10]} h5 {[%emt 0:00:09]} 29. Qd2 {[%emt 0:00:12]} Qc7 {[%emt 0:00:11]} 30. Qe3 {[%emt 0:00:14]} Kh7 {[%emt 0:00:15]} 31. Qe4 {[%emt 0:00:10]} Rc1+ {[%emt 0:00:08]} 32. Rxc1 {[%emt 0:00:12]} Qxc1+ {[%emt 0:00:09]} 33. Kg2 {[%emt 0:00:08]} Qc5 {[%emt 0:00:50]} 34. Bxh5 {[%emt 0:00:16]} Qxa3 {[%emt 0:00:11]} 35. Bf3 {[%emt 0:00:14]} Qe7 {[%emt 0:00:24]} 36. h5 {[%emt 0:00:10]} a4 {[%emt 0:00:08]} 37. hxg6+ {[%emt 0:00:10]} fxg6 {[%emt 0:00:08]} 38. Qc6 {[%emt 0:00:14]} a3 39. Be4 {[%emt 0:00:44]} Qd6 {[%emt 0:00:52]} 40. Qxb5 {[%emt 0:00:38]} a2 {[%emt 0:00:08]} 41. Qa4 {[%emt 0:00:11]} Qa3 {[%emt 0:00:11]} 42. Qd7+ {[%emt 0:00:10]} Qe7 {[%emt 0:00:12]} 43. Qa4 {[%emt 0:00:12]} Qa3 {[%emt 0:00:09]} 44. Qe8 {[%emt 0:00:09]} Qa6 {[%emt 0:00:11]} 45. Qd7+ {[%emt 0:00:27]} Bg7 46. Qh3+ Bh6 47. Qd7+ {[%emt 0:00:20]} Kh8 {[%emt 0:00:28]} 48. Qe8+ {[%emt 0:00:12]} Kh7 {[%emt 0:00:10]} 49. Qf7+ {[%emt 0:00:15]} Bg7 {[%emt 0:00:09]} 50. Bxg6+ {[%emt 0:00:09]} Qxg6 {[%emt 0:00:09]} 51. Qxa2 Qc6+ 52. f3 {[%emt 0:00:20]} Qc5 {[%emt 0:00:23]} 53. Qc4 {[%emt 0:00:11]} Qd6 {[%emt 0:00:10]} 54. Qe4+ {[%emt 0:00:09]} Kh8 {[%emt 0:00:10]} 55. f4 {[%emt 0:00:09]} exf4 56. gxf4 {[%emt 0:00:09]} Bf6 {[%emt 0:00:19]} 57. Qe8+ {[%emt 0:00:09]} Kg7 {[%emt 0:00:08]} 58. Qe4 {[%emt 0:00:09]} Qa3 {[%emt 0:00:10]} 59. Qb7+ {[%emt 0:00:10]} Kh6 {[%emt 0:00:09]} 60. Qe4 {[%emt 0:00:11]} Qc5 {[%emt 0:00:10]} 61. Qf3 {[%emt 0:00:12]} Bh4 {[%emt 0:00:11]} 62. Kh3 {[%emt 0:00:11]} Bf6 {[%emt 0:00:08]} 63. Kg2 {[%emt 0:00:09]} Qc7 {[%emt 0:00:15]} 64. Qh3+ {[%emt 0:00:12]} Kg6 {[%emt 0:00:09]} 65. Qg4+ {[%emt 0:00:09]} Kh6 {[%emt 0:00:10]} 66. Qf5 {[%emt 0:00:10]} Qg7+ {[%emt 0:00:09]} 67. Kf3 {[%emt 0:00:09]} Qe7 {[%emt 0:00:11]} 68. e4 {[%emt 0:00:10]} Bd4 {[%emt 0:00:12]} 69. e5 {[%emt 0:00:11]} Qh4 {[%emt 0:00:10]} 70. Ke4 {[%emt 0:00:10]} Bf2 {[%emt 0:00:10]} 71. Qf8+ {[%emt 0:00:10]} Kh7 {[%emt 0:00:09]} 72. Qf5+ {[%emt 0:00:13]} Kh6 {[%emt 0:00:09]} 73. Qe6+ {[%emt 0:00:09]} Kh7 {[%emt 0:00:09]} 74. Qf5+ {[%emt 0:00:11]} Kh6 {[%emt 0:00:08]} 75. Qe6+ {[%emt 0:00:11]} Kg7 {[%emt 0:00:08]} 76. Qd7+ {[%emt 0:00:10]} Kf8 {[%emt 0:00:11]} 77. Qf5+ {[%emt 0:00:10]} Ke8 {[%emt 0:00:10]} 78. Qe6+ {[%emt 0:00:10]} Kd8 {[%emt 0:00:11]} 79. Qg8+ {[%emt 0:00:11]} Kc7 {[%emt 0:00:09]} 80. Qg7+ {[%emt 0:00:10]} Kb8 {[%emt 0:00:09]} 81. e6 {[%emt 0:00:10]} Qh1+ {[%emt 0:00:10]} 82. Kf5 {[%emt 0:00:09]} Qd5+ {[%emt 0:00:10]} 83. Qe5+ {[%emt 0:00:09]} Qxe5+ {[%emt 0:00:11]} 84. Kxe5 {[%emt 0:00:09]} Kc7 {[%emt 0:00:16]} 85. f5 {[%emt 0:00:10]} Bh4 {[%emt 0:00:10]} 86. f6 Bg3+ 87. Kf5 Kd6 88. e7 Kd7 89. Kg6 {[%emt 0:00:38]} Ke8 {[%emt 0:00:33]} 90. d4 {[%emt 0:00:09]} Bd6 {[%emt 0:00:09]} 91. f7+ {[%emt 0:00:12]} Kxe7 {[%emt 0:00:08]} 92. Kg7 {[%emt 0:00:09]} Ke6 {[%emt 0:00:09]} 93. f8=Q {[%emt 0:00:11]} Bxf8+ {[%emt 0:00:09]} 94. Kxf8 Kd5 95. Kf7 1/2-1/2

[Event "EUCC Open Blitz 2024"]
[Site "Miskolc"]
[Date "2024.07.13"]
[Round "4.2"]
[White "Atakishiyev, Elmar"]
[Black "Stauskas, Lukas"]
[Result "0-1"]
[ECO "E17"]
[WhiteElo "2356"]
[BlackElo "2362"]
[PlyCount "96"]
[EventDate "2024.07.08"]
[EventType "team-tourn"]
[EventCountry "HUN"]
[TimeControl "1500+10"]

1. d4 {[%emt 0:22:17]} Nf6 {[%emt 0:22:17]} 2. c4 {[%emt 0:00:08]} e6 {[%emt 0:00:09]} 3. Nf3 {[%emt 0:00:09]} b6 {[%emt 0:00:09]} 4. g3 {[%emt 0:00:12]} Bb7 {[%emt 0:00:09]} 5. Bg2 {[%emt 0:00:08]} Be7 {[%emt 0:00:09]} 6. O-O {[%emt 0:00:10]} O-O {[%emt 0:00:10]} 7. Re1 {[%emt 0:00:08]} Na6 {[%emt 0:00:09]} 8. b3 {[%emt 0:00:15]} c5 {[%emt 0:00:15]} 9. Bb2 {[%emt 0:00:09]} d6 {[%emt 0:00:15]} 10. Nc3 {[%emt 0:00:14]} Ne4 {[%emt 0:00:11]} 11. Rc1 {[%emt 0:00:25]} Nxc3 {[%emt 0:00:10]} 12. Bxc3 {[%emt 0:00:10]} Be4 {[%emt 0:00:12]} 13. Qd2 {[%emt 0:00:22]} Qc7 {[%emt 0:00:20]} 14. Qb2 {[%emt 0:00:10]} Bf6 {[%emt 0:00:17]} 15. Rcd1 {[%emt 0:00:20]} Rac8 {[%emt 0:00:19]} 16. d5 {[%emt 0:00:25]} Bxc3 {[%emt 0:00:10]} 17. Qxc3 {[%emt 0:00:09]} exd5 {[%emt 0:00:21]} 18. cxd5 {[%emt 0:00:10]} Nb4 {[%emt 0:00:15]} 19. Qc4 {[%emt 0:00:28]} Rfe8 {[%emt 0:00:20]} 20. Rd2 {[%emt 0:00:30]} Qb7 {[%emt 0:00:10]} 21. Nh4 {[%emt 0:00:38]} b5 {[%emt 0:00:38]} 22. Qc1 Bxg2 23. Nxg2 {[%emt 0:00:17]} Nxd5 {[%emt 0:00:19]} 24. Red1 {[%emt 0:00:08]} Nf6 {[%emt 0:00:18]} 25. Rxd6 {[%emt 0:00:27]} c4 {[%emt 0:00:30]} 26. bxc4 {[%emt 0:00:14]} bxc4 {[%emt 0:00:10]} 27. Qc2 {[%emt 0:00:19]} h6 {[%emt 0:00:15]} 28. Nf4 {[%emt 0:00:10]} c3 {[%emt 0:00:16]} 29. R6d3 {[%emt 0:00:20]} Ne4 {[%emt 0:00:13]} 30. Re3 {[%emt 0:00:12]} f5 {[%emt 0:00:21]} 31. Rb1 {[%emt 0:00:15]} Qc6 {[%emt 0:00:22]} 32. h4 {[%emt 0:00:09]} Nd2 {[%emt 0:00:16]} 33. Rxe8+ {[%emt 0:00:20]} Rxe8 {[%emt 0:00:09]} 34. Rc1 {[%emt 0:00:08]} Ne4 {[%emt 0:00:11]} 35. h5 {[%emt 0:00:10]} Qc5 {[%emt 0:00:12]} 36. e3 {[%emt 0:00:15]} Kh7 {[%emt 0:00:12]} 37. Rd1 {[%emt 0:00:10]} Rb8 {[%emt 0:00:13]} 38. Rd5 {[%emt 0:00:10]} Qc8 {[%emt 0:00:14]} 39. Rd1 {[%emt 0:00:16]} Rb2 {[%emt 0:00:10]} 40. Qa4 {[%emt 0:00:09]} Nxf2 41. Rc1 Ne4 {[%emt 0:00:28]} 42. Qa5 {[%emt 0:00:19]} c2 {[%emt 0:00:12]} 43. Qe1 {[%emt 0:00:12]} Qc5 {[%emt 0:00:10]} 44. Ng6 {[%emt 0:00:10]} Rb1 {[%emt 0:00:11]} 45. Rxb1 {[%emt 0:00:09]} cxb1=Q {[%emt 0:00:09]} 46. Qxb1 {[%emt 0:00:08]} Qxe3+ {[%emt 0:00:09]} 47. Kh1 {[%emt 0:00:11]} Qf3+ {[%emt 0:00:10]} 48. Kg1 {[%emt 0:00:11]} Qxg3+ {[%emt 0:00:09]} 0-1

[Event "EUCC Open Blitz 2024"]
[Site "Miskolc"]
[Date "2024.07.13"]
[Round "4.3"]
[White "Kruckenhauser, Arthur"]
[Black "Gatineau, Yovann"]
[Result "0-1"]
[ECO "C08"]
[WhiteElo "2340"]
[BlackElo "2414"]
[PlyCount "106"]
[EventDate "2024.07.08"]
[EventType "team-tourn"]
[EventCountry "HUN"]
[TimeControl "1500+10"]

1. e4 e6 2. d4 {[%emt 0:22:26]} d5 {[%emt 0:22:25]} 3. Nd2 {[%emt 0:00:09]} c5 {[%emt 0:00:08]} 4. exd5 {[%emt 0:00:09]} exd5 {[%emt 0:00:09]} 5. Bb5+ {[%emt 0:00:13]} Bd7 {[%emt 0:00:13]} 6. Qe2+ {[%emt 0:00:10]} Be7 {[%emt 0:00:10]} 7. dxc5 {[%emt 0:00:13]} Nf6 {[%emt 0:00:10]} 8. Nb3 {[%emt 0:00:20]} O-O {[%emt 0:00:12]} 9. Nf3 {[%emt 0:00:23]} Re8 {[%emt 0:00:12]} 10. Be3 {[%emt 0:00:09]} Na6 {[%emt 0:00:52]} 11. c6 {[%emt 0:00:40]} bxc6 {[%emt 0:01:02]} 12. Bxa6 {[%emt 0:00:09]} c5 {[%emt 0:00:11]} 13. Bb5 {[%emt 0:01:07]} d4 {[%emt 0:00:17]} 14. Bxd7 {[%emt 0:00:12]} Qxd7 {[%emt 0:00:09]} 15. O-O {[%emt 0:00:14]} dxe3 {[%emt 0:00:12]} 16. Qxe3 {[%emt 0:00:10]} Bd6 {[%emt 0:00:14]} 17. Qd2 {[%emt 0:00:25]} Rad8 {[%emt 0:00:10]} 18. Rad1 {[%emt 0:00:10]} Qf5 {[%emt 0:00:13]} 19. Qg5 {[%emt 0:00:17]} Qxc2 {[%emt 0:00:14]} 20. Rd2 {[%emt 0:00:11]} Qc4 {[%emt 0:00:30]} 21. Rc1 {[%emt 0:00:17]} Qb4 {[%emt 0:00:09]} 22. Rdc2 {[%emt 0:00:24]} h6 {[%emt 0:00:14]} 23. Qf5 {[%emt 0:00:14]} Rc8 {[%emt 0:00:21]} 24. Rc4 {[%emt 0:00:10]} Qb7 {[%emt 0:00:11]} 25. h3 {[%emt 0:00:10]} Bf8 {[%emt 0:00:14]} 26. Qc2 {[%emt 0:00:14]} Rb8 {[%emt 0:00:12]} 27. Qf5 {[%emt 0:00:14]} Re2 {[%emt 0:00:11]} 28. R4c2 {[%emt 0:00:12]} Rbe8 {[%emt 0:00:13]} 29. Rxe2 {[%emt 0:00:11]} Rxe2 {[%emt 0:00:08]} 30. Rc2 {[%emt 0:00:10]} Qe7 {[%emt 0:00:13]} 31. Qd3 {[%emt 0:00:12]} Rxc2 {[%emt 0:00:13]} 32. Qxc2 {[%emt 0:00:09]} Qe6 {[%emt 0:00:10]} 33. Nbd2 {[%emt 0:00:09]} Qxa2 {[%emt 0:00:10]} 34. Nc4 {[%emt 0:00:09]} Qa6 {[%emt 0:00:11]} 35. Nfe5 {[%emt 0:00:12]} Qe6 {[%emt 0:00:10]} 36. Qa4 {[%emt 0:00:09]} Qd5 {[%emt 0:00:11]} 37. Qxa7 {[%emt 0:00:11]} Ne4 {[%emt 0:00:13]} 38. Qa1 {[%emt 0:00:12]} f6 {[%emt 0:00:10]} 39. Nf3 {[%emt 0:00:11]} Qxc4 {[%emt 0:00:10]} 40. Qe1 {[%emt 0:00:09]} Ng5 {[%emt 0:00:10]} 41. Nd2 {[%emt 0:00:10]} Qd5 {[%emt 0:00:09]} 42. h4 {[%emt 0:00:10]} Nf7 {[%emt 0:00:09]} 43. Nf3 {[%emt 0:00:08]} Bd6 {[%emt 0:00:09]} 44. Qe8+ {[%emt 0:00:10]} Kh7 {[%emt 0:00:09]} 45. Qe2 {[%emt 0:00:09]} Ne5 {[%emt 0:00:12]} 46. Nd2 {[%emt 0:00:11]} Qd3 {[%emt 0:00:12]} 47. Qe1 {[%emt 0:00:11]} c4 {[%emt 0:00:10]} 48. Ne4 {[%emt 0:00:09]} Bb4 {[%emt 0:00:10]} 49. Qxb4 {[%emt 0:00:13]} Qxe4 {[%emt 0:00:10]} 50. b3 {[%emt 0:00:09]} Qb1+ {[%emt 0:00:10]} 51. Kh2 {[%emt 0:00:09]} cxb3 {[%emt 0:00:08]} 52. h5 {[%emt 0:00:09]} b2 {[%emt 0:00:10]} 53. Qf4 {[%emt 0:00:13]} Qd3 {[%emt 0:00:11]} 0-1

[Event "EUCC Open Blitz 2024"]
[Site "Miskolc"]
[Date "2024.07.13"]
[Round "4.4"]
[White "Houhou, Alexandre"]
[Black "Leisch, Lukas"]
[Result "0-1"]
[ECO "C07"]
[WhiteElo "2148"]
[BlackElo "2394"]
[PlyCount "114"]
[EventDate "2024.07.08"]
[EventType "team-tourn"]
[EventCountry "HUN"]
[TimeControl "1500+10"]

1. e4 {[%emt 0:22:16]} e6 {[%emt 0:22:16]} 2. d4 {[%emt 0:00:09]} d5 3. Nd2 c5 {[%emt 0:00:18]} 4. Ngf3 {[%emt 0:00:18]} cxd4 {[%emt 0:00:09]} 5. Nxd4 {[%emt 0:00:10]} Nc6 {[%emt 0:00:09]} 6. Bb5 {[%emt 0:00:09]} Bd7 {[%emt 0:00:09]} 7. Nxc6 {[%emt 0:00:09]} bxc6 8. Bd3 Bd6 {[%emt 0:00:26]} 9. Qe2 {[%emt 0:00:18]} e5 {[%emt 0:00:10]} 10. O-O {[%emt 0:00:17]} Qe7 {[%emt 0:00:23]} 11. c4 {[%emt 0:00:09]} d4 {[%emt 0:00:10]} 12. c5 {[%emt 0:00:17]} Bxc5 {[%emt 0:00:09]} 13. Nc4 {[%emt 0:00:13]} Nf6 {[%emt 0:00:14]} 14. f4 {[%emt 0:00:18]} exf4 15. Bxf4 {[%emt 0:00:13]} Ng4 {[%emt 0:00:29]} 16. Rac1 {[%emt 0:00:14]} O-O {[%emt 0:00:20]} 17. h3 {[%emt 0:00:12]} Ne3 {[%emt 0:00:09]} 18. Nxe3 {[%emt 0:00:31]} dxe3 {[%emt 0:00:10]} 19. Bxe3 {[%emt 0:00:31]} Bxe3+ {[%emt 0:00:09]} 20. Qxe3 {[%emt 0:00:10]} a5 {[%emt 0:00:18]} 21. Qc5 {[%emt 0:00:12]} Qh4 {[%emt 0:00:46]} 22. e5 {[%emt 0:00:19]} Bxh3 {[%emt 0:00:18]} 23. Bxh7+ {[%emt 0:00:40]} Qxh7 {[%emt 0:00:11]} 24. gxh3 {[%emt 0:00:12]} Qxh3 {[%emt 0:00:16]} 25. Qxc6 {[%emt 0:00:19]} Rae8 {[%emt 0:00:13]} 26. Qf3 {[%emt 0:00:59]} Qxf3 {[%emt 0:00:14]} 27. Rxf3 Rxe5 {[%emt 0:00:09]} 28. Rc7 {[%emt 0:00:20]} f6 {[%emt 0:00:18]} 29. Rg3 {[%emt 0:00:11]} Rf7 {[%emt 0:00:13]} 30. Rc8+ {[%emt 0:00:09]} Kh7 {[%emt 0:00:10]} 31. Kf2 {[%emt 0:00:15]} g5 {[%emt 0:00:11]} 32. Rh3+ {[%emt 0:00:13]} Kg6 {[%emt 0:00:11]} 33. Rch8 {[%emt 0:00:10]} Rc7 {[%emt 0:00:13]} 34. R8h6+ {[%emt 0:00:10]} Kf5 {[%emt 0:00:18]} 35. Rf3+ {[%emt 0:00:08]} Kg4 {[%emt 0:00:17]} 36. Rg3+ {[%emt 0:00:11]} Kf4 {[%emt 0:00:09]} 37. Rxf6+ {[%emt 0:00:11]} Ke4 {[%emt 0:00:12]} 38. Re3+ {[%emt 0:00:10]} Kd5 {[%emt 0:00:09]} 39. Rxe5+ {[%emt 0:00:09]} Kxe5 {[%emt 0:00:09]} 40. Ra6 {[%emt 0:00:10]} Rc5 {[%emt 0:00:14]} 41. a3 {[%emt 0:00:10]} Kf4 {[%emt 0:00:10]} 42. b4 {[%emt 0:00:09]} Rc2+ {[%emt 0:00:10]} 43. Ke1 {[%emt 0:00:09]} axb4 {[%emt 0:00:10]} 44. axb4 {[%emt 0:00:09]} Rb2 {[%emt 0:00:09]} 45. Ra4 {[%emt 0:00:11]} Kf3 {[%emt 0:00:12]} 46. Ra3+ {[%emt 0:00:09]} Kg2 {[%emt 0:00:09]} 47. Ra4 {[%emt 0:00:12]} g4 {[%emt 0:00:09]} 48. b5 {[%emt 0:00:09]} g3 {[%emt 0:00:09]} 49. Rh4 {[%emt 0:00:11]} Rxb5 {[%emt 0:00:10]} 50. Ke2 {[%emt 0:00:10]} Re5+ {[%emt 0:00:09]} 51. Kd2 {[%emt 0:00:10]} Kf3 {[%emt 0:00:11]} 52. Rh8 {[%emt 0:00:10]} g2 {[%emt 0:00:10]} 53. Rg8 {[%emt 0:00:10]} Kf2 {[%emt 0:00:12]} 54. Rf8+ {[%emt 0:00:10]} Kg3 {[%emt 0:00:12]} 55. Rg8+ {[%emt 0:00:09]} Kf3 {[%emt 0:00:10]} 56. Rf8+ {[%emt 0:00:09]} Kg4 {[%emt 0:00:10]} 57. Rg8+ Rg5 0-1